bitfinex/quotes_ETHUSD_20250107
["timestamp","ask_amount","ask_price","bid_price","bid_amount"]
[1736278165331,0.04025114,3425.0,3424.9,0.03669414]
[1736278165522,4.34513612,3425.6,3424.9,0.03669414]
[1736278165831,0.04025114,3425.0,3424.9,0.03669414]
[1736278166033,4.34513612,3425.6,3424.7,0.0075]
[1736278166034,7.26438612,3425.6,3424.7,0.0075]
[1736278166230,0.04025114,3425.0,3424.7,0.0075]
[1736278166436,0.04034232,3424.9,3424.7,0.0075]
[1736278166603,7.26438612,3425.6,3424.8,0.0075]
[1736278166795,0.04034232,3425.5,3424.8,0.0075]
[1736278166996,0.04034232,3425.5,3424.8,0.03669422]
[1736278167224,0.04034232,3425.5,3424.8,0.0075]
[1736278168339,6.26579612,3425.2,3424.3,0.8284]
[1736278168521,3.34623612,3424.8,3424.0,0.8159]
[1736278168723,3.34623612,3424.8,3422.4,6.7799466]
[1736278168724,2.92025,3424.4,3423.7,0.8159]
[1736278168928,6.26648612,3424.4,3423.4,0.8159]
[1736278169128,3.34623612,3424.4,3423.6,3.0075]
[1736278169304,0.04037037,3424.3,3423.6,3.0]
[1736278169504,0.04037037,3424.3,3423.5,3.294685]
[1736278169711,2.92015,3424.5,3423.5,3.294685]
[1736278169912,0.04037037,3424.2,3423.6,3.0]
[1736278170148,0.7736,3424.6,3423.9,0.0075]
[1736278170301,1.0516,3425.0,3424.1,0.0075]
[1736278170638,7.31756612,3425.0,3424.1,0.0075]
[1736278170845,1.21797756,3424.9,3424.1,0.0075]
[1736278171342,4.01463281,3424.9,3424.1,0.03670079]
[1736278171841,1.21797756,3424.9,3424.3,0.0075]
[1736278172026,1.21797756,3424.9,3424.3,0.41330176]
[1736278172553,1.0516,3425.0,3424.3,0.38410308]
[1736278172700,1.0516,3425.0,3424.3,0.0075]
[1736278173102,2.79665525,3424.8,3424.3,0.0075]
[1736278173307,1.0516,3425.0,3424.3,0.0075]
[1736278173715,2.79665525,3424.8,3424.0,3.72204]
[1736278174070,2.79665525,3424.5,3423.8,0.59487658]
[1736278174369,2.79665525,3424.5,3423.7,0.8071]
[1736278175009,2.79665525,3424.5,3423.8,0.03670325]
[1736278175210,2.91997,3424.7,3423.8,0.03670325]
[1736278175820,2.91997,3424.7,3423.8,3.37125207]
[1736278177065,2.91997,3424.7,3423.8,0.45053207]
[1736278177411,2.9201,3424.6,3423.8,0.0075]
[1736278177744,4.01463281,3424.8,3423.8,0.0075]
[1736278177954,6.93454281,3424.8,3423.8,0.0075]
[1736278178613,2.51986812,3424.5,3423.8,0.03670329]
[1736278179859,1.21797756,3424.6,3423.8,2.95734329]
[1736278180023,1.21797756,3424.6,3423.8,3.39314309]
[1736278181120,3.73841195,3424.7,3423.8,3.39314309]
[1736278181454,6.65839195,3424.7,3423.8,3.39314309]
[1736278181653,2.79665525,3424.5,3423.8,0.0075]
[1736278182364,4.01463281,3424.5,3423.8,0.03670333]
[1736278183562,2.79665525,3424.5,3423.8,0.03670333]
[1736278183763,0.04027923,3424.4,3423.8,0.03670333]
[1736278184059,2.79665525,3424.2,3423.8,0.0075]
[1736278184230,2.79665525,3424.2,3423.1,2.92129]
[1736278184435,2.96082923,3424.1,3423.3,0.5966467]
[1736278185030,0.04027923,3424.1,3423.4,0.0075]
[1736278185251,0.04027923,3424.1,3423.6,0.8147]
[1736278185461,3.74257504,3424.3,3423.6,0.84390568]
[1736278185630,0.04007579,3424.2,3423.6,0.84390568]
[1736278185963,1.21797756,3423.9,3423.8,2.92065]
[1736278186135,1.21797756,3423.9,3423.8,3.51084626]
[1736278186339,1.21797756,3423.9,3423.8,0.0075]
[1736278186340,1.25749207,3423.9,3423.8,0.0075]
[1736278187142,0.03951451,3423.9,3423.8,0.0075]
[1736278187533,1.00983899,3424.1,3423.9,0.0075]
[1736278187840,1.00983899,3424.1,3423.8,2.92819]
[1736278188041,0.03951451,3424.0,3423.8,2.92819]
[1736278188350,0.03951451,3424.0,3423.8,0.0075]
[1736278188966,1.21797756,3424.2,3423.8,0.0075]
[1736278189141,0.03951451,3423.9,3423.8,0.0075]
[1736278189342,1.21797756,3424.2,3423.8,0.0075]
[1736278189856,0.03951451,3424.1,3423.8,0.0075]
[1736278190257,0.03951451,3424.1,3424.0,3.76106]
[1736278191370,1.21797756,3424.6,3424.5,0.0075]
[1736278191529,1.21797756,3424.6,3424.5,3.69703]
[1736278191730,1.25749207,3424.6,3424.5,3.69703]
[1736278192256,1.25749207,3424.6,3424.5,3.72622825]
[1736278192257,0.03951451,3424.6,3424.5,3.72622825]
[1736278192566,1.21797756,3424.8,3424.7,2.92746]
[1736278193553,2.43595513,3425.1,3424.8,0.0075]
[1736278193873,1.21797756,3425.2,3424.8,2.95649547]
[1736278194639,1.21797756,3425.2,3424.8,2.9273]
[1736278194866,1.21797756,3425.3,3424.8,2.9273]
[1736278196140,1.21797756,3425.2,3425.0,0.0075]
[1736278197175,1.21797756,3425.2,3425.1,0.8243]
[1736278197377,1.21797756,3425.2,3425.1,3.74392]
[1736278197567,1.21797756,3425.4,3425.3,3.74375]
[1736278198639,1.25828474,3425.4,3425.3,3.74375]
[1736278199084,0.04030718,3425.4,3425.3,3.74375]
[1736278199381,1.21797756,3426.0,3425.6,0.0075]
[1736278199587,2.79665525,3425.7,3424.9,0.8168]
[1736278199769,2.79665525,3425.7,3425.0,0.029193]
[1736278200088,0.04030718,3425.6,3425.1,0.0075]
[1736278200286,2.79665525,3425.4,3424.9,0.8168]
[1736278200588,2.79665525,3425.1,3424.3,2.9203]
[1736278200736,5.71634525,3425.1,3424.1,3.73725]
[1736278200941,5.71634525,3425.1,3424.2,0.0292007]
[1736278201186,2.79665525,3424.5,3424.0,1.80029859]
[1736278201494,3.61585525,3425.1,3424.1,0.02920198]
[1736278201718,3.61585525,3425.1,3424.0,1.80029859]
[1736278201719,1.44097756,3425.0,3424.0,0.58825419]
[1736278201996,1.44097756,3425.0,3424.3,2.92028]
[1736278202200,1.21797756,3425.0,3424.9,0.0075]
[1736278202363,1.82696635,3425.0,3424.9,2.92729]
[1736278202559,1.82696635,3425.0,3424.9,3.69509]
[1736278202763,1.82696635,3425.0,3424.9,6.69509]
[1736278202959,1.82696635,3425.0,3424.9,7.28217849]
[1736278203185,1.82696635,3425.0,3424.9,8.30239634]
[1736278203998,0.04030718,3425.6,3425.5,2.92678]
[1736278204207,0.04030718,3425.6,3425.5,0.0075]
[1736278205377,0.04030718,3425.6,3425.5,2.92678]
[1736278206596,0.04030718,3425.6,3425.5,3.299028]
[1736278206880,0.04030718,3425.6,3425.5,6.299028]
[1736278207045,0.04030718,3425.6,3425.5,7.114728]
[1736278207876,7.18e-06,3425.6,3425.5,7.664728]
[1736278208079,1.22123729,3426.3,3426.2,3.68498]
[1736278208294,1.22123729,3426.5,3426.4,5.92601]
[1736278208673,1.22123729,3426.5,3426.4,3.0075]
[1736278209050,1.22123729,3426.5,3426.4,5.92601]
[1736278209363,1.22123729,3426.5,3426.4,0.0075]
[1736278210493,0.8314,3427.0,3426.5,0.0075]
[1736278210690,0.223,3427.1,3426.5,0.0366799]
[1736278210885,0.223,3427.1,3426.5,2.9550699]
[1736278211045,0.223,3427.1,3426.7,0.0075]
[1736278211247,0.223,3427.1,3426.6,0.0075]
[1736278211863,0.223,3427.1,3426.4,0.0075]
[1736278212188,2.91788,3427.2,3426.4,0.0075]
[1736278212189,2.91803,3427.0,3426.4,0.0075]
[1736278212390,2.91803,3427.0,3426.2,0.0075]
[1736278212549,2.79665525,3427.0,3426.2,0.0075]
[1736278214473,2.79665525,3427.0,3426.2,3.35279658]
[1736278214783,2.79665525,3427.0,3426.2,0.43411658]
[1736278215177,2.79665525,3427.0,3426.2,0.0075]
[1736278216295,2.79665525,3427.0,3426.2,2.92617]
[1736278216493,2.79665525,3427.0,3426.2,0.0075]
[1736278216884,2.79665525,3427.0,3426.2,2.92617]
[1736278217079,0.8314,3427.3,3426.4,0.0075]
[1736278217297,0.223,3427.5,3426.7,0.8044]
[1736278217466,2.79665525,3427.3,3426.7,0.8044]
[1736278217661,0.04164893,3427.2,3426.6,0.0075]
[1736278217868,0.04164893,3427.2,3426.6,2.92576]
[1736278218067,0.223,3427.5,3426.8,0.0075]
[1736278218300,0.04190118,3427.4,3426.8,0.0075]
[1736278219165,0.04190118,3427.4,3427.0,0.0075]
[1736278219362,2.79665525,3427.6,3427.0,0.0075]
[1736278219618,0.04199225,3427.3,3427.0,0.0075]
[1736278219820,2.79665525,3427.6,3427.0,0.0075]
[1736278220021,0.04199225,3427.2,3427.0,0.0075]
[1736278220200,2.79665525,3427.6,3427.0,0.0075]
[1736278220671,0.04199225,3427.5,3427.0,0.0075]
[1736278221474,3.72431,3427.2,3426.7,0.0075]
[1736278221710,0.8064,3427.2,3426.7,0.0075]
[1736278222031,0.04199225,3427.1,3426.6,0.0075]
[1736278222382,0.8064,3427.2,3426.6,0.0075]
[1736278222567,0.04199225,3427.0,3426.6,0.68278713]
[1736278222768,0.04199225,3427.0,3425.5,3.372248]
[1736278223005,2.9181,3426.9,3425.8,2.91902]
[1736278223320,2.9181,3426.9,3426.0,0.58905309]
[1736278223321,2.79665525,3426.4,3426.0,0.58905309]
[1736278223527,2.79665525,3426.4,3425.6,0.7977]
[1736278223528,2.79665525,3426.4,3425.6,3.71689]
[1736278223821,2.79665525,3426.1,3425.5,0.372248]
[1736278223972,2.79665525,3426.1,3425.3,0.7977]
[1736278224163,0.04159987,3426.3,3425.4,0.02919084]
[1736278224369,2.9186,3426.3,3425.5,0.57982358]
[1736278224569,0.04159987,3426.2,3425.6,0.0075]
[1736278224983,2.79665525,3426.1,3425.5,0.57982358]
[1736278225185,0.8064,3426.0,3425.5,0.57982358]
[1736278225384,0.8064,3426.0,3425.6,0.0075]
[1736278226117,0.04159987,3425.9,3425.6,0.0075]
[1736278226470,2.91913,3425.7,3425.3,0.7977]
[1736278226675,2.79665525,3425.8,3424.8,2.9198]
[1736278226999,2.79665525,3425.8,3425.2,0.58968507]
[1736278227000,0.04065374,3425.7,3425.2,0.58968507]
[1736278228472,1.0294,3426.0,3425.2,0.58968507]
[1736278228688,0.04047848,3425.9,3425.2,0.58968507]
[1736278231078,0.04047848,3425.9,3425.4,2.92684]
[1736278231519,0.04047848,3425.9,3425.4,0.0366899]
[1736278231829,0.04047848,3425.9,3425.6,0.0075]
[1736278232126,0.223,3426.2,3425.6,0.0075]
[1736278232330,0.04046446,3425.8,3425.6,3.33469589]
[1736278232617,0.04046446,3425.8,3425.6,3.30550599]
[1736278232920,0.04054158,3425.7,3425.6,3.30550599]
[1736278233318,0.8331,3426.3,3425.6,0.38634599]
[1736278233522,0.8331,3426.3,3425.5,0.0075]
[1736278233688,0.04054158,3426.2,3425.5,0.0075]
[1736278233890,0.04054158,3426.2,3425.3,0.8325]
[1736278234200,2.79665525,3426.1,3425.4,0.0075]
[1736278234404,2.79665525,3425.8,3425.4,0.0075]
[1736278234702,3.71120158,3425.7,3425.4,0.0075]
[1736278234875,0.79204158,3425.7,3425.3,0.0075]
[1736278235598,0.79204158,3425.7,3425.0,0.0075]
[1736278235830,0.79204158,3425.7,3425.2,0.0075]
[1736278237218,2.79665525,3425.5,3424.4,0.7607]
[1736278237436,2.79665525,3424.8,3423.7,0.7607]
[1736278237635,2.79665525,3424.8,3424.4,0.58575522]
[1736278237817,0.03992459,3424.7,3424.0,2.9205]
[1736278238146,0.7936,3424.4,3423.7,0.7607]
[1736278238351,2.79665525,3424.2,3423.4,1.2120444]
[1736278238651,2.79665525,3423.9,3423.4,1.2120444]
[1736278238830,0.03989654,3424.1,3423.5,0.5842317]
[1736278239152,0.03927224,3423.8,3423.5,0.5842317]
[1736278239462,0.03927224,3423.7,3423.5,1.61384997]
[1736278239751,2.79665525,3424.2,3423.5,1.61384997]
[1736278239948,2.79665525,3424.2,3423.6,0.0075]
[1736278240119,0.03927224,3424.1,3423.3,0.7607]
[1736278240320,2.79665525,3423.9,3423.3,1.35288043]
[1736278240620,0.03906875,3423.8,3423.3,0.59218043]
[1736278241975,0.03906875,3423.8,3423.4,0.0075]
[1736278243469,5.71704525,3424.2,3423.4,0.0075]
[1736278243618,0.03796741,3423.7,3423.4,0.0075]
[1736278243823,2.79665525,3424.2,3423.4,0.0075]
[1736278244023,0.03796741,3423.6,3423.4,0.0075]
[1736278244271,2.79665525,3424.2,3423.4,0.0075]
[1736278244478,0.8184,3423.8,3423.4,0.0075]
[1736278245026,0.03796741,3423.7,3423.4,0.0075]
[1736278245248,0.8184,3423.8,3423.4,0.0075]
[1736278245463,0.03796741,3423.6,3423.1,0.0075]
[1736278245665,0.8184,3423.8,3423.1,0.0075]
[1736278245975,0.03796741,3423.5,3423.1,0.0075]
[1736278246126,0.8184,3423.8,3423.1,0.32433627]
[1736278246334,0.03796741,3423.4,3423.1,0.32433627]
[1736278246628,0.8184,3423.8,3423.3,0.0075]
[1736278249139,0.8184,3423.8,3422.9,3.7607]
[1736278249140,2.92147,3423.0,3421.8,2.92243]
[1736278249340,2.79665525,3422.6,3422.0,0.59931706]
[1736278249547,2.79665525,3422.2,3421.6,3.7069]
[1736278249767,2.79665525,3422.2,3421.6,1.15499]
[1736278250058,2.79665525,3422.2,3421.6,0.37069]
[1736278250457,2.79665525,3422.2,3420.9,3.70742]
[1736278250458,2.79665525,3421.9,3420.9,3.70742]
[1736278250623,2.79665525,3421.9,3421.0,2.93059]
[1736278250867,0.03671763,3421.8,3421.2,0.0075]
[1736278251204,0.223,3422.2,3421.7,0.0075]
[1736278251406,0.7557,3422.5,3421.7,0.0075]
[1736278251707,0.7557,3422.5,3421.6,2.92256]
[1736278251708,0.223,3422.4,3421.9,0.0075]
[1736278251902,0.25732669,3422.4,3421.9,0.0075]
[1736278252064,0.25732669,3422.4,3421.4,0.0075]
[1736278252574,0.223,3422.3,3421.4,0.0075]
[1736278253157,0.03432669,3422.2,3421.4,0.0075]
[1736278253404,0.03432669,3422.2,3421.6,0.0075]
[1736278253958,2.92236,3421.9,3421.3,0.793]
[1736278254502,0.03432669,3421.8,3421.4,0.0075]
[1736278254703,2.9222,3422.1,3421.4,0.03672485]
[1736278254897,3.57130324,3422.3,3421.4,0.0075]
[1736278255202,0.03432669,3422.0,3421.0,1.35992034]
[1736278255357,2.92261,3421.6,3421.0,1.79591237]
[1736278255553,2.92261,3421.6,3421.0,1.35992034]
[1736278255752,3.72487,3421.8,3421.1,0.0075]
[1736278255953,3.72487,3421.8,3421.0,1.35992034]
[1736278255954,0.03432669,3421.5,3421.0,1.35992034]
[1736278256154,3.72487,3421.8,3421.0,1.35992034]
[1736278256398,0.03432669,3421.4,3421.1,0.0075]
[1736278256580,0.8024,3422.1,3421.1,0.47346989]
[1736278256798,0.03432669,3421.3,3421.2,3.0075]
[1736278256976,0.223,3421.9,3421.3,0.0075]
[1736278257306,0.223,3422.3,3421.5,0.0075]
[1736278257452,0.03432669,3421.8,3421.7,0.8013]
[1736278257857,3.14493,3422.4,3421.7,0.8013]
[1736278258210,0.03374319,3421.8,3421.7,0.8013]
[1736278258352,2.92193,3422.4,3421.7,0.8013]
[1736278258557,0.03374319,3421.8,3421.7,0.8013]
[1736278258807,2.92193,3422.4,3421.7,1.18435219]
[1736278258960,0.03374319,3421.8,3421.7,0.8013]
[1736278259387,1.0007,3422.5,3421.7,0.8013]
[1736278259660,0.03394006,3422.4,3421.7,0.8013]
[1736278260515,0.03394006,3422.4,3421.9,2.92983]
[1736278260825,0.03394006,3422.4,3420.7,0.7909]
[1736278260826,2.92251,3421.8,3420.7,0.7909]
[1736278260976,0.223,3421.7,3420.7,0.7909]
[1736278261175,1.039,3421.7,3420.8,0.671441]
[1736278261378,1.039,3421.7,3420.7,3.71427]
[1736278261379,0.03405255,3421.6,3420.7,3.71427]
[1736278261589,0.03405255,3421.6,3420.8,3.0]
[1736278261999,1.039,3421.7,3420.8,3.0]
[1736278262298,1.039,3421.7,3420.9,0.0075]
[1736278262507,0.03405255,3421.6,3420.9,0.0075]
[1736278262705,0.03405255,3421.6,3420.9,0.0367272]
[1736278262906,0.03405255,3421.6,3421.1,0.0075]
[1736278263210,0.03405255,3421.6,3420.7,0.7909]
[1736278263390,2.92286,3421.3,3420.4,0.7562]
[1736278263593,3.34830324,3421.4,3420.4,0.7562]
[1736278263759,2.9559828,3421.2,3420.4,1.424201]
[1736278263964,2.92302,3421.2,3420.4,1.424201]
[1736278264211,0.0329628,3421.1,3420.5,0.0367314]
[1736278264406,0.0329628,3421.1,3420.5,0.0075]
[1736278264615,2.92288,3421.3,3420.5,0.0367314]
[1736278264771,3.96156,3421.7,3420.8,0.0075]
[1736278264772,0.0329628,3421.0,3420.8,0.0075]
[1736278265108,0.223,3421.5,3421.0,0.7696]
[1736278265607,0.0329628,3421.4,3421.0,0.7696]
[1736278265805,0.7564,3421.3,3420.7,0.58396295]
[1736278266110,0.223,3421.5,3420.9,0.0075]
[1736278266410,0.0329628,3421.2,3420.9,0.0075]
[1736278266621,0.223,3421.5,3420.4,0.7971]
[1736278266821,0.8047,3421.7,3420.5,0.02923145]
[1736278267102,0.0329628,3421.4,3420.8,0.0075]
[1736278267304,0.223,3421.6,3420.8,3.03672962]
[1736278267464,3.1785728,3421.6,3420.8,3.0075]
[1736278267666,3.1785728,3421.6,3420.6,0.0075]
[1736278267868,3.1785728,3421.6,3420.6,3.39811639]
[1736278268064,0.2559628,3421.6,3420.6,3.39811639]
[1736278268464,0.0329628,3421.6,3420.6,0.47467639]
[1736278268773,0.0329628,3421.6,3421.2,0.0075]
[1736278268971,0.0329628,3421.6,3421.5,3.0075]
[1736278269207,3.14508,3422.3,3421.5,3.0]
[1736278269410,3.14508,3422.3,3421.6,0.0075]
[1736278269568,0.03144847,3422.2,3421.6,0.03672222]
[1736278269805,0.03144847,3422.2,3421.9,0.7677]
[1736278270040,0.03144847,3422.2,3422.1,0.0075]
[1736278270249,0.9815,3422.8,3422.1,0.0075]
[1736278270250,3.90316,3422.8,3422.1,0.0075]
[1736278270617,0.03144847,3422.7,3422.0,0.0075]
[1736278271003,0.03144847,3422.7,3422.0,0.03671855]
[1736278271222,0.03144847,3422.7,3422.3,0.0075]
[1736278271546,0.223,3423.1,3422.3,0.0075]
[1736278271839,2.95287847,3423.0,3422.1,0.0075]
[1736278272302,2.95287847,3423.0,3422.1,0.43524958]
[1736278273347,0.03144847,3423.0,3422.3,0.0075]
[1736278273515,2.9215,3422.9,3422.3,0.0075]
[1736278273716,2.9215,3422.9,3422.1,0.03671568]
[1736278274029,0.223,3423.1,3422.1,0.03671568]
[1736278274030,0.03144847,3422.8,3422.1,0.03671568]
[1736278274201,0.03144847,3422.8,3422.5,0.0075]
[1736278274401,0.8024,3423.6,3422.7,0.0075]
[1736278274597,0.8024,3423.6,3422.7,0.03671118]
[1736278274841,0.03144847,3423.5,3422.9,0.0075]
[1736278275440,0.03144847,3423.5,3422.9,0.03671119]
[1736278276242,0.03144847,3423.5,3422.9,2.92892]
[1736278276444,0.03144847,3423.5,3423.1,0.0075]
[1736278276631,2.92089,3423.7,3423.1,0.0075]
[1736278276809,0.03144847,3423.4,3422.8,0.754]
[1736278277009,0.03144847,3423.4,3422.9,0.0075]
[1736278277218,0.7995,3423.3,3422.9,0.0075]
[1736278277420,0.83094847,3423.3,3422.9,0.0075]
[1736278277655,0.83094847,3423.3,3422.4,0.8098]
[1736278277957,0.83094847,3423.3,3422.1,2.9221]
[1736278277958,2.92164,3422.8,3422.1,0.8072]
[1736278278146,3.14464,3422.8,3422.1,0.8072]
[1736278278556,0.03144847,3422.7,3422.1,0.8072]
[1736278279457,0.03144847,3422.7,3422.2,0.0075]
[1736278279649,0.8077,3422.6,3420.9,2.92314]
[1736278279855,2.92216,3422.2,3421.2,0.7663]
[1736278280162,2.92216,3422.2,3421.3,0.0075]
[1736278280359,0.03256681,3422.1,3421.2,0.7663]
[1736278280532,0.03256681,3422.1,3421.2,3.68923]
[1736278280738,0.03256681,3422.1,3421.4,0.0075]
[1736278281728,0.03256681,3422.1,3421.8,0.0075]
[1736278283167,2.95475681,3422.1,3421.8,0.0075]
[1736278283534,0.03256681,3422.1,3421.8,0.0075]
[1736278283737,2.92202,3422.3,3421.8,0.0075]
[1736278284070,0.03319996,3422.2,3422.0,0.0075]
[1736278284361,1.20988472,3422.6,3422.0,0.03671892]
[1736278284567,0.03320699,3422.5,3422.0,0.03671892]
[1736278284916,0.03320699,3422.5,3422.0,0.0075]
[1736278285120,0.03320699,3422.5,3421.8,0.0075]
[1736278286168,0.8294,3422.4,3421.5,0.813]
[1736278286662,2.92214,3422.2,3421.5,0.813]
[1736278286860,2.92214,3422.2,3421.5,1.186594]
[1736278287037,0.03336171,3422.1,3421.2,3.72844]
[1736278287367,0.03336171,3422.1,3421.5,0.0075]
[1736278287518,0.03336171,3422.1,3421.5,0.03672304]
[1736278287724,2.92204,3422.3,3421.5,0.0075]
[1736278288051,0.03320699,3422.2,3421.5,0.0075]
[1736278288365,2.95532699,3422.2,3421.5,0.0075]
[1736278288566,0.03320699,3422.2,3421.2,0.8055]
[1736278288768,2.92244,3421.8,3421.2,0.8055]
[1736278289144,0.03320699,3421.7,3421.2,0.8055]
[1736278289662,0.03320699,3421.7,3421.3,0.0075]
[1736278289819,3.72651,3421.6,3421.0,0.57361152]
[1736278290023,3.75971699,3421.6,3421.1,0.0075]
[1736278290769,0.03320699,3421.6,3421.3,0.0075]
[1736278290982,5.11249472,3422.2,3421.5,0.0075]
[1736278291141,5.11249472,3422.2,3421.5,0.03672395]
[1736278291576,1.20988472,3422.0,3421.5,0.03672395]
[1736278291958,1.20988472,3422.0,3421.3,0.8198]
[1736278292775,3.93246562,3422.1,3421.3,0.8198]
[1736278292973,3.93246562,3422.1,3421.5,0.0075]
[1736278293175,1.01020562,3422.1,3421.5,0.0075]
[1736278293362,1.01020562,3422.1,3421.5,0.03672397]
[1736278293566,1.01020562,3422.1,3421.4,0.0075]
[1736278293793,1.01020562,3422.0,3421.4,0.0075]
[1736278294091,1.01020562,3422.0,3421.4,0.381773]
[1736278294285,1.01020562,3422.0,3421.6,0.0075]
[1736278294847,2.52657522,3422.1,3421.5,0.0075]
[1736278295787,0.03218017,3422.0,3421.5,0.0075]
[1736278296031,0.03218017,3422.0,3421.5,0.7192003]
[1736278296196,0.03218017,3422.0,3421.5,0.74842432]
[1736278296362,0.03218017,3422.0,3421.5,0.7192003]
[1736278296696,3.37878063,3422.0,3420.4,1.2099275]
[1736278296994,3.37878063,3422.0,3421.1,0.0075]
[1736278297156,2.92249,3421.8,3421.1,0.0075]
[1736278297353,3.34660046,3422.0,3421.1,0.0075]
[1736278297573,2.92263,3421.6,3420.6,0.7843]
[1736278297865,0.0321661,3421.5,3420.7,3.0]
[1736278298263,0.0321661,3421.5,3420.8,0.0075]
[1736278298494,0.0321661,3421.5,3421.0,0.0075]
[1736278298653,0.0321661,3421.5,3421.4,3.71458]
[1736278298860,1.20988472,3421.7,3421.5,2.93015]
[1736278299180,1.20988472,3421.7,3421.6,6.301545]
[1736278299382,1.20988472,3422.2,3421.7,3.0075]
[1736278299584,1.20988472,3422.2,3421.9,0.8198]
[1736278300001,3.34660046,3422.0,3421.6,0.57246325]
[1736278300183,2.92253,3421.7,3421.1,0.8266]
[1736278300681,2.92236,3421.9,3421.1,0.8266]
[1736278300923,2.92236,3421.9,3421.2,0.0075]
[1736278301215,3.34660046,3422.0,3421.2,0.0075]
[1736278301216,2.92244,3421.8,3421.2,0.0075]
[1736278301371,1.0112073,3421.6,3421.2,0.0075]
[1736278302815,3.34660046,3421.6,3421.0,0.5731653]
[1736278303226,6.26925046,3421.6,3421.1,0.0075]
[1736278304114,3.34660046,3421.6,3421.1,0.0075]
[1736278304291,2.9227,3421.5,3421.1,0.0075]
[1736278304613,3.9456,3421.5,3420.9,0.0075]
[1736278304767,3.9456,3421.5,3420.9,0.60040595]
[1736278305382,2.92278,3421.4,3420.9,0.60040595]
[1736278306017,0.223,3421.5,3421.1,0.0075]
[1736278306176,0.223,3421.5,3421.1,0.3635265]
[1736278306508,0.223,3421.5,3421.3,0.0075]
[1736278307445,1.81482708,3421.8,3421.3,0.0075]
[1736278307446,1.20988472,3421.8,3421.3,0.0075]
[1736278307628,1.20988472,3421.8,3421.3,0.03672722]
[1736278307932,1.20988472,3421.8,3421.3,2.95956722]
[1736278308134,1.20988472,3421.8,3421.5,0.0075]
[1736278308945,1.20988472,3422.0,3421.5,0.0075]
[1736278309641,1.20988472,3422.0,3421.5,2.95936256]
[1736278309796,1.20988472,3422.0,3421.7,0.0075]
[1736278309993,1.01065314,3422.1,3421.7,0.03672206]
[1736278310251,1.01065314,3422.1,3422.0,3.71086]
[1736278310449,1.01065314,3422.1,3422.0,7.08486821]
[1736278310739,1.04205908,3422.1,3422.0,7.08486821]
[1736278311097,1.01065314,3422.1,3422.0,7.08486821]
[1736278311631,3.0247118,3422.7,3422.0,7.08486821]
[1736278311632,1.43288472,3423.1,3422.1,0.0075]
[1736278311827,1.43288472,3423.1,3422.3,0.0075]
[1736278312032,0.03140594,3423.0,3422.3,2.92945]
[1736278312337,0.03140594,3423.0,3422.5,0.0075]
[1736278312745,2.9215,3422.9,3422.0,4.37715379]
[1736278313043,0.03196876,3422.8,3422.0,0.59605379]
[1736278313341,6.26828046,3422.7,3421.7,0.8161]
[1736278313526,2.92192,3422.5,3421.8,0.0075]
[1736278313838,0.03196876,3422.4,3421.8,0.0075]
[1736278314538,0.03196876,3422.4,3422.2,0.0075]
[1736278316070,0.03196876,3422.4,3421.9,0.0075]
[1736278316564,0.03196876,3422.4,3422.1,0.0075]
[1736278317629,0.03196876,3422.4,3422.3,0.0075]
[1736278318241,0.03196876,3422.4,3422.3,0.7400718]
[1736278318558,0.03179291,3422.4,3422.3,0.7400718]
[1736278318759,1.20988472,3422.6,3422.3,0.0075]
[1736278318966,0.03179291,3422.5,3422.3,0.0075]
[1736278319256,4.13138472,3422.9,3422.3,0.0075]
[1736278319440,0.03179291,3422.4,3422.3,0.0075]
[1736278319643,1.20988472,3422.9,3422.3,0.0075]
[1736278319869,0.03179291,3422.4,3422.3,0.0075]
[1736278320061,1.20988472,3422.9,3422.3,0.0075]
[1736278320259,0.03179291,3422.4,3422.3,0.0075]
[1736278320461,1.20988472,3422.9,3422.3,0.0075]
[1736278320923,0.03179291,3422.8,3422.3,0.0075]
[1736278321129,0.03179291,3422.8,3422.5,0.0075]
[1736278322326,3.72493,3422.6,3421.7,0.7914]
[1736278322728,0.03179291,3422.5,3421.7,0.7914]
[1736278323330,0.03179291,3422.5,3422.1,0.0075]
[1736278323769,0.03179291,3422.5,3421.6,0.5900592]
[1736278323931,2.92226,3422.1,3421.4,0.7785]
[1736278324264,2.92267,3421.6,3421.1,0.7785]
[1736278324448,2.9227,3421.5,3420.9,1.81489126]
[1736278324630,2.9228,3421.4,3420.9,2.41150368]
[1736278324832,2.9228,3421.4,3420.8,1.2099275]
[1736278324833,0.8184,3421.4,3420.8,1.2099275]
[1736278325142,2.9232,3420.9,3420.8,1.2099275]
[1736278325346,3.99620991,3420.9,3420.8,1.2099275]
[1736278326178,2.92354,3420.5,3419.5,2.0221275]
[1736278326383,0.03158176,3420.4,3419.6,0.38370188]
[1736278326793,0.03158176,3420.4,3419.8,0.58801334]
[1736278326993,0.223,3420.6,3420.0,0.0075]
[1736278327317,0.0294559,3420.5,3420.0,3.0075]
[1736278327503,1.0110976,3420.3,3420.2,0.0075]
[1736278327833,1.0110976,3420.3,3420.2,0.60357352]
[1736278328135,1.0405535,3420.3,3420.2,3.76193517]
[1736278328439,0.0294559,3420.3,3420.2,6.7327]
[1736278328782,1.20988472,3420.8,3420.4,0.0075]
[1736278329090,0.0294559,3420.7,3420.6,3.0075]
[1736278329285,0.0294559,3420.7,3420.6,5.93096]
[1736278329541,1.43288472,3421.6,3420.6,8.7921494]
[1736278329842,0.0294559,3421.5,3420.6,8.7921494]
[1736278330408,0.0294559,3421.5,3420.6,8.7846494]
[1736278330890,0.0294559,3421.5,3420.7,0.7972]
[1736278331229,0.0294559,3421.5,3420.8,0.0075]
[1736278331426,0.0294559,3421.5,3421.0,0.0075]
[1736278331731,0.0294559,3421.5,3421.2,3.0075]
[1736278331916,1.20988472,3421.7,3421.4,0.0075]
[1736278332847,1.20988472,3421.7,3420.9,0.95818494]
[1736278333052,1.20988472,3421.7,3421.0,0.0075]
[1736278333340,1.20988472,3421.7,3421.2,0.0075]
[1736278333550,5.16142754,3421.9,3421.2,0.61676047]
[1736278333551,1.20988472,3421.9,3421.2,0.61676047]
[1736278333833,1.20988472,3421.9,3421.4,0.0075]
[1736278334497,1.20988472,3422.0,3421.4,0.0367258]
[1736278335234,3.73717435,3422.1,3421.4,0.0367258]
[1736278337336,3.73717435,3422.1,3421.4,3.0367258]